[Event "CCT Final-RR 2024"]
[Site "Oslo"]
[Date "2024.12.17"]
[Round "1"]
[White "Keymer, Vincent"]
[Black "Carlsen, Magnus"]
[Result "1/2-1/2"]
[ECO "E25"]
[WhiteElo "2733"]
[BlackElo "2831"]
[Annotator "TA"]
[PlyCount "87"]
[EventDate "2024.12.11"]
[EventType "tourn"]
[EventCountry "NOR"]
[SourceTitle "playchess.com"]
[Source "ChessBase"]
[SourceQuality "1"]
[TimeControl "600+2"]

{[%evp 17,87,16,50,28,12,0,26,28,39,18,70,22,14,11,9,11,18,11,16,15,21,8,21,0,0,0,0,0,0,0,0,0,0,0,0,0,0,0,0,0,0,0,0,-6,0,0,0,0,0,0,0,0,0,-29,-31,-63,-56,-90,-71,-167,-157,-163,-170,-167,-8,-8,-7,-18,0,0,0,-25]} 1. d4 {[%emt 0:00:02]} Nf6 {[%emt 0:00:02]} 2. c4 {[%emt 0:00:01]} e6 {[%emt 0:00:02]} 3. Nc3 {[%emt 0:00:01]} Bb4 {[%emt 0:00:01]} 4. f3 {[%emt 0:00:02]} d5 {[%emt 0:00:02]} 5. a3 {[%emt 0:00:00]} Bxc3+ {[%emt 0:00:02]} 6. bxc3 {[%emt 0:00:01]} c5 {[%emt 0:00:01]} 7. cxd5 {[%emt 0:00:02]} Nxd5 {[%emt 0:00:02]} 8. dxc5 {[%emt 0:00:02]} Qa5 {[%emt 0:00:04]} 9. e4 {[%emt 0:00:01]} Nc7 {[%emt 0:00:02][%cal Oc7a6]} (9... Nxc3 10. Qd2 Nc6 11. Bb2 $11) (9... Qxc3+ $6 10. Bd2 Qe5 11. Ne2 $16) 10. Be3 {[%emt 0:00:15] Black is weak on the dark squares} O-O {[%emt 0:00:05][%cal Oc7a6]} 11. Kf2 {[%emt 0:01:23]} Nc6 {[%emt 0:00:24][%cal Of7f5]} 12. Qb3 {[%emt 0:00:26]} e5 {[%emt 0:01:48]} 13. Bc4 {[%emt 0:00:01]} Ne6 {[%emt 0:00:51]} (13... Na6 $11) 14. Ne2 {[%emt 0:00:48]} ({White should play} 14. a4 $1 $14) 14... Nxc5 $11 {[%emt 0:00:11][%cal Be6c5,Bc5b3,Bb3d2][%mdl 32]} 15. Qb5 {[%emt 0:00:01]} Qxb5 {[%emt 0:00:07]} 16. Bxb5 {[%emt 0:00:02] This pair of bishops is nice.} Nb3 {[%emt 0:00:02]} 17. Rab1 {[%emt 0:00:36][%cal Ob5c6]} Be6 {[%emt 0:00:07]} 18. Rhd1 {[%emt 0:03:08]} Rfd8 {[%emt 0:00:22]} 19. Rxd8+ {[%emt 0:00:27]} Rxd8 {[%emt 0:00:02]} 20. c4 {[%emt 0:00:02]} Nca5 {[%emt 0:01:47]} 21. Bxa7 {[%emt 0:00:05]} Nd2 {[%emt 0:00:09]} 22. Rb4 {[%emt 0:00:31]} Ra8 {[%emt 0:00:36]} 23. Be3 {[%emt 0:00:56]} Ndxc4 {[%emt 0:00:02]} 24. a4 {[%emt 0:00:00]} Rc8 {[%emt 0:00:41]} 25. Bc1 {[%emt 0:00:09]} f6 {[%emt 0:00:02]} 26. Rb1 {[%emt 0:00:10]} Nd6 {[%emt 0:00:15]} 27. Bd3 {[%emt 0:00:28]} Bc4 {[%emt 0:00:04]} 28. Bxc4+ {[%emt 0:00:06]} Rxc4 {[%emt 0:00:02]} 29. Ba3 {[%emt 0:00:01]} Nc8 {[%emt 0:00:17]} 30. Rb4 {[%emt 0:00:26]} Rc2 {[%emt 0:00:11]} 31. Rb5 {[%emt 0:00:07]} Nc4 {[%emt 0:00:05]} 32. Bb4 {[%emt 0:00:10]} b6 {[%emt 0:00:55]} 33. Rd5 {[%emt 0:00:02] Black must now prevent Rd8+.} Nb2 $1 {[%emt 0:00:02]} 34. Kf1 {[%emt 0:00:16]} Nxa4 {[%emt 0:00:05]} 35. Ng3 {[%emt 0:00:15]} g6 {[%emt 0:00:09]} 36. Rd7 {[%emt 0:00:04]} b5 {[%emt 0:00:07]} 37. Rb7 {[%emt 0:00:04]} Ncb6 {[%emt 0:00:02]} 38. h4 {[%emt 0:00:03] [#]} (38. Ne2 $17) 38... Nc4 $1 $19 {[%emt 0:00:02] and ...Ne3+ should not be overlooked} 39. Kg1 {[%emt 0:00:03][%cal Oh4h5]} Ne3 {[%emt 0:00:02]} 40. Kh1 {[%emt 0:00:02] [#]} Nxg2 $2 {[%emt 0:00:09]} ({But not} 40... Rxg2 41. Nf1 Re2 (41... Nxf1 $2 {perishes.} 42. Kxg2 Ne3+ 43. Kf2 $18) 42. Nxe3 Rxe3 43. Kg2 $15) (40... Nb2 $1 $19 41. Rb8+ Kg7 42. Rb7+ Kg8) 41. Rb8+ $11 {[%emt 0:00:01]} Kf7 {[%emt 0:00:02]} (41... Kg7 $5 42. Rb7+ $8 Kg8 43. Rb8+ Kf7 44. Rb7+ Ke8 (44... Kg8 45. Rb8+ $15) 45. Re7+ Kd8 46. Rxh7 Nf4 47. Be7+ Kd7 $15) 42. Rb7+ {[%emt 0:00:01]} Kg8 {[%emt 0:00:02]} 43. Rb8+ {[%emt 0:00:03]} Kf7 {[%emt 0:00:01]} 44. Rb7+ {[%emt 0:00:01]} 1/2-1/2

[Event "CCT Final-RR 2024"]
[Site "Oslo"]
[Date "2024.12.17"]
[Round "1"]
[White "Vachier-Lagrave, Maxime"]
[Black "Lazavik, Denis"]
[Result "1/2-1/2"]
[ECO "E20"]
[WhiteElo "2731"]
[BlackElo "2578"]
[Annotator "TA"]
[PlyCount "64"]
[EventDate "2024.12.11"]
[EventType "tourn"]
[EventCountry "NOR"]
[SourceTitle "playchess.com"]
[Source "ChessBase"]
[SourceQuality "1"]
[TimeControl "600+2"]

{[%evp 10,64,0,10,10,0,0,5,11,-7,-5,-65,-75,-111,-22,-73,-69,-74,-83,-80,-53,-81,-52,-68,-62,-59,-45,-43,-39,-63,-32,-72,-63,-66,-55,-114,-96,-131,-49,-53,-37,-59,-66,-66,-68,-60,-61,-64,-63,-79,0,0,0,0,0,0,0]} 1. d4 {[%emt 0:00:02]} Nf6 {[%emt 0:00:02]} 2. c4 {[%emt 0:00:02]} e6 {[%emt 0:00:02]} 3. Nc3 {[%emt 0:00:01]} Bb4 {[%emt 0:00:01]} 4. f3 {[%emt 0:00:02]} d5 {[%emt 0:00:04]} 5. a3 {[%emt 0:00:01]} Be7 {[%emt 0:00:02]} 6. e4 {[%emt 0:00:03]} dxc4 {[%emt 0:00:03]} 7. Be3 {[%emt 0:00:38]} b5 {[%emt 0:00:10]} 8. Nxb5 {[%emt 0:00:05]} Ba6 {[%emt 0:00:08]} 9. Nc3 {[%emt 0:00:22][%cal Of1c4]} (9. Bxc4 c6 10. e5 cxb5 $15 (10... Bxb5 11. exf6 Bxf6 12. Qd3 $15)) 9... O-O {[%emt 0:00:18][%cal Oc7c5]} 10. Nh3 {[%emt 0:00:06] [#]} (10. Qa4 $11) 10... c5 $1 $15 {[%emt 0:00:47]} 11. dxc5 {[%emt 0:00:18]} (11. d5 exd5) 11... Qc7 {[%emt 0:00:13]} (11... Nfd7 $1 $17 {[%cal Od8c7]} 12. Na4 Qa5+ 13. Bd2 Qc7) 12. Qc2 {[%emt 0:00:35]} (12. Qa4 $1 $11) 12... Bxc5 $17 {[%emt 0:00:31]} 13. Bxc5 {[%emt 0:00:02]} Qxc5 {[%emt 0:00:02]} 14. Qf2 {[%emt 0:00:01]} Qa5 {[%emt 0:01:13]} 15. Be2 {[%emt 0:00:15]} Nc6 {[%emt 0:00:02]} 16. O-O {[%emt 0:00:13]} Rab8 {[%emt 0:00:01]} 17. Rab1 {[%emt 0:00:02]} Rfd8 {[%emt 0:00:05]} 18. Rfd1 {[%emt 0:00:38] Wards off Rd2} Rxd1+ {[%emt 0:00:17]} 19. Nxd1 {[%emt 0:00:18]} h6 {[%emt 0:00:23]} 20. Bf1 {[%emt 0:00:38]} Nd7 {[%emt 0:01:21]} 21. Rc1 {[%emt 0:00:18]} Nb6 {[%emt 0:00:20]} 22. Nf4 {[%emt 0:00:30]} ({White should play} 22. Qe3 $15) 22... Ne5 {[%emt 0:00:22]} 23. Qe3 {[%emt 0:00:56] [#]} Rd8 {[%emt 0:00:15]} ({Better is} 23... Na4 $1 $17 24. Qxa7 Rb6) 24. Nc3 {[%emt 0:00:10]} Nd3 {[%emt 0:00:18]} 25. Rd1 {[%emt 0:00:10][%cal Rf1d3]} Qg5 {[%emt 0:00:02]} 26. h4 {[%emt 0:00:39]} Qxh4 {[%emt 0:00:16] and ...Qg5 would now be decisive} (26... Qxf4 $2 {too greedy.} 27. Qxf4 Nxf4 28. Rxd8+ Kh7 29. a4 $18) 27. Nxd3 {[%emt 0:00:01]} cxd3 {[%emt 0:00:02]} 28. Bxd3 {[%emt 0:00:02]} Bxd3 {[%emt 0:00:24]} 29. Rxd3 {[%emt 0:00:01] [#]} Rxd3 {[%emt 0:00:39]} (29... Nc4 $1 $17 {[%cal Rc4e3]} 30. Rxd8+ Qxd8 31. Qxa7 Nxb2) 30. Qxd3 $15 {[%emt 0:00:01] KQN-KQN} Qe1+ {[%emt 0:00:01]} 31. Kh2 {[%emt 0:00:02]} Qh4+ {[%emt 0:00:08]} 32. Kg1 {[%emt 0:00:01]} Qe1+ {[%emt 0:00:09]} 1/2-1/2

[Event "CCT Final-RR 2024"]
[Site "Oslo"]
[Date "2024.12.17"]
[Round "1"]
[White "Lazavik, Denis"]
[Black "Vachier-Lagrave, Maxime"]
[Result "1-0"]
[ECO "E61"]
[WhiteElo "2578"]
[BlackElo "2731"]
[Annotator "TA"]
[PlyCount "199"]
[EventDate "2024.12.11"]
[EventType "tourn"]
[EventCountry "NOR"]
[SourceTitle "playchess.com"]
[Source "ChessBase"]
[SourceQuality "1"]
[TimeControl "600+2"]

{[%evp 13,199,14,26,9,53,14,12,-14,18,25,43,50,57,41,55,35,49,6,22,0,64,83,77,89,135,121,146,147,156,137,153,117,115,110,115,83,135,77,91,92,107,112,105,104,120,93,82,89,131,116,104,97,107,101,103,103,117,116,120,118,119,112,108,110,114,100,108,108,110,108,116,120,118,108,110,108,108,110,129,108,132,132,132,132,300,287,491,308,621,649,550,591,1079,1051,914,1008,1233,966,1366,1406,1393,1099,1019,1071,1000,660,598,535,485,462,835,100,100,100,100,100,108,100,100,100,100,100,100,100,100,100,100,100,100,100,100,100,100,100,100,100,86,86,86,86,100,100,100,100,100,100,100,100,100,100,29965,29966,29966,29966,29964,29964,29964,8,29971,29969,29970,29971,29971,29972,29972,29973,29973,0,29972,29973,29973,29974,29974,29975,29979,29980,29980,29976,29976,29977,29978,29979,29979,29980,29980,29981,29981,29982]} 1. d4 {[%emt 0:00:01]} Nf6 {[%emt 0:00:01]} 2. Nf3 {[%emt 0:00:04]} g6 {[%emt 0:00:03]} 3. c4 {[%emt 0:00:01]} Bg7 {[%emt 0:00:02]} 4. e3 {[%emt 0:00:02]} O-O 5. Be2 {[%emt 0:00:03]} c5 {[%emt 0:00:16]} 6. d5 {[%emt 0:00:02]} d6 {[%emt 0:00:02]} 7. Nc3 {[%emt 0:00:02]} e6 {[%emt 0:00:02]} 8. Nd2 {[%emt 0:00:04]} b5 {[%emt 0:00:04]} 9. dxe6 {[%emt 0:00:10]} ({Of course not} 9. cxb5 $6 Nxd5 10. Nxd5 exd5 $15) 9... Bxe6 {[%emt 0:00:04]} 10. cxb5 {[%emt 0:00:02] The position is equal.} d5 {[%emt 0:00:08]} 11. O-O {[%emt 0:00:31]} Nbd7 {[%emt 0:00:19]} 12. Nf3 {[%emt 0:01:37]} h6 {[%emt 0:00:01]} 13. a4 {[%emt 0:00:04]} Qc7 {[%emt 0:00:24]} 14. a5 {[%emt 0:00:40]} Rad8 {[%emt 0:00:03]} 15. Ra4 {[%emt 0:00:09][%cal Ob5b6]} Rfe8 {[%emt 0:00:14]} 16. Bd2 {[%emt 0:00:34]} Ng4 {[%emt 0:00:57] [#]} ({Better is} 16... Ne5 $11) 17. Nxd5 $1 $14 {[%emt 0:02:00]} Bxd5 {[%emt 0:00:11]} 18. Rxg4 {[%emt 0:00:02]} Nf6 {[%emt 0:02:19]} (18... Ne5 $142 19. Nxe5 Bxe5) 19. Ra4 $16 {[%emt 0:00:10]} Ne4 {[%emt 0:00:02]} 20. Qc2 {[%emt 0:00:28]} c4 {[%emt 0:00:22]} 21. Bxc4 {[%emt 0:00:36][%cal Be2c4,Bc4b3,Bb3c2,Bc2d3][%mdl 32]} Nd6 {[%emt 0:00:02]} 22. Bb3 {[%emt 0:00:56]} Qxc2 {[%emt 0:00:03]} 23. Bxc2 {[%emt 0:00:01]} Nxb5 {[%emt 0:00:01][%cal Od5f3] aiming for ...Bxf3!} 24. Bc1 {[%emt 0:00:32]} Rb8 {[%emt 0:00:14]} (24... Re7 $142) 25. Rd1 {[%emt 0:00:06]} (25. e4 $142 $1 {[%cal Re4d5]} Ba8 26. Rd1) 25... Be6 {[%emt 0:00:36]} 26. Ra1 {[%emt 0:00:28]} Rec8 {[%emt 0:00:09]} 27. Bd3 {[%emt 0:00:02]} Bb3 {[%emt 0:00:18]} 28. Re1 {[%emt 0:00:02]} Rd8 {[%emt 0:00:03]} 29. Bxb5 {[%emt 0:00:22]} Rxb5 {[%emt 0:00:01] [#]} 30. Nd4 $1 {[%emt 0:00:01]} Rb7 {[%emt 0:00:08]} (30... Bxd4 31. exd4) 31. a6 {[%emt 0:00:06]} Rb6 {[%emt 0:00:01]} 32. Bd2 {[%emt 0:00:01] Ba5 would now be deadly.} Rd7 {[%emt 0:00:28]} 33. Bc3 {[%emt 0:00:18]} Bc4 {[%emt 0:00:03]} 34. Ra4 {[%emt 0:00:03]} Bd3 {[%emt 0:00:10]} 35. Rea1 {[%emt 0:00:16]} Rdd6 {[%emt 0:00:02]} 36. h3 {[%emt 0:00:16]} Bf8 {[%emt 0:00:31]} 37. Nf3 {[%emt 0:00:13]} Rxa6 {[%emt 0:00:25]} 38. Rxa6 {[%emt 0:00:01]} Rxa6 {[%emt 0:00:02]} 39. Rxa6 {[%emt 0:00:00]} Bxa6 {[%emt 0:00:01][%mdl 4096] Endgame. KBB-KBN} 40. Bd4 {[%emt 0:00:01]} Bb7 {[%emt 0:00:02]} 41. Bxa7 {[%emt 0:00:02]} f6 {[%emt 0:00:00]} 42. Bd4 {[%emt 0:00:01]} Kf7 {[%emt 0:00:01]} 43. Nd2 {[%emt 0:00:02]} Ke6 {[%emt 0:00:08]} 44. f3 {[%emt 0:00:04]} f5 {[%emt 0:00:04]} 45. Kf2 {[%emt 0:00:02]} Bd5 {[%emt 0:00:04]} 46. Nb1 {[%emt 0:00:03]} Bb4 {[%emt 0:00:04]} 47. Nc3 {[%emt 0:00:02]} Bxc3 {[%emt 0:00:12]} 48. Bxc3 {[%emt 0:00:02] KB-KB} g5 $2 {[%emt 0:00:10] [#]} (48... Kd6 $16 {was necessary.} 49. Kg3 Bc4) 49. g4 $1 $18 {[%emt 0:00:04]} fxg4 $2 {[%emt 0:00:07]} (49... Bc4 50. Bg7 h5 51. gxh5 Kf7) 50. hxg4 {[%emt 0:00:00]} Kf7 {[%emt 0:00:01] Inhibits Bg7.} 51. e4 {[%emt 0:00:04]} Bb3 {[%emt 0:00:01]} 52. Ke3 {[%emt 0:00:03]} Kg6 {[%emt 0:00:02]} 53. f4 {[%emt 0:00:06]} gxf4+ {[%emt 0:00:03]} 54. Kxf4 {[%emt 0:00:01]} Kf7 {[%emt 0:00:08]} 55. Bb4 {[%emt 0:00:01]} Be6 {[%emt 0:00:04]} 56. Bc5 {[%emt 0:00:01]} Bc8 {[%emt 0:00:04]} 57. b4 {[%emt 0:00:01]} Bd7 {[%emt 0:00:01]} 58. Be3 {[%emt 0:00:05]} Kf6 {[%emt 0:00:02]} 59. Bd4+ {[%emt 0:00:01]} Kf7 {[%emt 0:00:02]} 60. Bc3 {[%emt 0:00:04]} Kg6 {[%emt 0:00:04]} 61. Bd2 {[%emt 0:00:01]} Kf7 {[%emt 0:00:01]} (61... Kg7 $142 62. Kg3 Kg6) 62. g5 $2 {[%emt 0:00:02]} (62. Ke5 $18 {is the precise move to win.}) 62... hxg5+ $16 {[%emt 0:00:02]} 63. Kxg5 {[%emt 0:00:01]} Ke6 {[%emt 0:00:00]} 64. Kf4 {[%emt 0:00:01]} Kd6 {[%emt 0:00:32]} 65. Ke3 {[%emt 0:00:01]} Bb5 {[%emt 0:00:08]} 66. Kd4 {[%emt 0:00:01]} Bf1 {[%emt 0:00:01]} 67. Bf4+ {[%emt 0:00:01]} Kc6 {[%emt 0:00:01]} 68. Ke5 {[%emt 0:00:01]} Bd3 {[%emt 0:00:04]} 69. Bd2 {[%emt 0:00:04]} Bc2 {[%emt 0:00:02]} 70. Kf4 {[%emt 0:00:01]} Bb1 {[%emt 0:00:06]} 71. Ke3 {[%emt 0:00:05]} Bc2 {[%emt 0:00:04]} 72. Kd4 {[%emt 0:00:01]} Bb1 {[%emt 0:00:01]} 73. Bc3 {[%emt 0:00:02]} Bc2 {[%emt 0:00:01]} 74. e5 {[%emt 0:00:01]} Bf5 {[%emt 0:00:06]} 75. Ke3 {[%emt 0:00:00] Threatening mate with Kf4.} Kd5 {[%emt 0:00:04]} 76. Kf4 {[%emt 0:00:01]} Bd7 {[%emt 0:00:01]} 77. Bd2 {[%emt 0:00:09]} Kd4 {[%emt 0:00:09]} 78. Be1 {[%emt 0:00:03]} Kd5 {[%emt 0:00:02]} 79. Bf2 {[%emt 0:00:03]} Kc4 {[%emt 0:00:08]} 80. Bc5 {[%emt 0:00:02] White threatens Kg5 and mate.} Kd5 {[%emt 0:00:01]} 81. Bd6 {[%emt 0:00:01]} Kc6 $2 {[%emt 0:00:23][%mdl 8192] [#]} (81... Be6 $16) 82. Kg5 $1 {[%emt 0:00:01]} Be6 {[%emt 0:00:07]} 83. Kf6 {[%emt 0:00:00]} Bc4 {[%emt 0:00:01]} 84. Ke7 {[%emt 0:00:04]} Kd5 {[%emt 0:00:01]} 85. e6 $2 {[%emt 0:00:03]} (85. Kf7 {mates} Kc6+ 86. Ke7 Kd5 87. Bc7 Bf1 88. Kf7 Kc6 89. Bb8 Kb5 90. Bd6) 85... Kc6 $2 {[%emt 0:00:01][%mdl 8192]} (85... Be2 $11) 86. Bc5 {[%emt 0:00:02]} Bb3 {[%emt 0:00:03]} 87. Kf6 {[%emt 0:00:01]} Bc4 {[%emt 0:00:02]} 88. e7 {[%emt 0:00:02]} Kd7 {[%emt 0:00:00]} 89. Ke5 {[%emt 0:00:03]} Bf1 {[%emt 0:00:13]} 90. Kf6 {[%emt 0:00:02]} Bc4 $1 {[%emt 0:00:01]} 91. Bf2 {[%emt 0:00:01] White mates.} Ke8 {[%emt 0:00:03]} 92. Bh4 {[%emt 0:00:01]} Kd7 {[%emt 0:00:02]} 93. Ke5 {[%emt 0:00:01]} Bf7 {[%emt 0:00:11]} 94. b5 {[%emt 0:00:03][%cal Bb4b5,Bb5b6][%mdl 32]} Be8 {[%emt 0:00:04]} 95. Kd5 {[%emt 0:00:01]} Kc7 {[%emt 0:00:01]} 96. Kc5 {[%emt 0:00:01]} Kb7 {[%emt 0:00:01]} 97. b6 {[%emt 0:00:03]} Kc8 {[%emt 0:00:01]} 98. Kd6 {[%emt 0:00:01]} Ba4 {[%emt 0:00:03]} 99. Ke6 {[%emt 0:00:01]} Kb7 {[%emt 0:00:02]} 100. Bf2 {[%emt 0:00:01] Weighted Error Value: White=0.11 (very precise) /Black=0.22 (precise) .  Loses game:     	---       	Black=2      Missed win:     	White=1     	---        Mistake:       	White=1     	Black=5      Inaccurate:     	White=4     	Black=3      OK:         	White=21    	Black=20     Best:        	White=7     	Black=3      Strong:       	White=2     	---        Brilliant:      	White=1     	---} 1-0

[Event "CCT Final-RR 2024"]
[Site "Oslo"]
[Date "2024.12.17"]
[Round "2"]
[White "Carlsen, Magnus"]
[Black "Nepomniachtchi, Ian"]
[Result "1-0"]
[ECO "C42"]
[WhiteElo "2831"]
[BlackElo "2755"]
[Annotator "TA"]
[PlyCount "91"]
[EventDate "2024.12.11"]
[EventType "tourn"]
[EventCountry "NOR"]
[SourceTitle "playchess.com"]
[Source "ChessBase"]
[SourceQuality "1"]
[TimeControl "600+2"]

{[%evp 18,91,0,0,0,0,12,8,23,14,26,20,39,0,26,0,0,0,0,0,39,44,64,74,75,0,47,0,66,0,0,0,36,24,16,0,0,0,0,0,0,0,0,0,0,0,0,0,0,0,75,75,87,77,95,92,102,58,93,33,34,0,0,0,45,32,41,27,142,106,568,565,539,556,29985,29986]} 1. e4 {[%emt 0:00:03]} e5 {[%emt 0:00:01]} 2. Nf3 {[%emt 0:00:02]} Nf6 {[%emt 0:00:01]} 3. Nxe5 {[%emt 0:00:03]} d6 {[%emt 0:00:02]} 4. Nf3 {[%emt 0:00:01]} Nxe4 {[%emt 0:00:01]} 5. Nc3 {[%emt 0:00:05]} Nxc3 {[%emt 0:00:02]} 6. dxc3 {[%emt 0:00:02]} Be7 {[%emt 0:00:02]} 7. Bf4 {[%emt 0:00:07]} Nd7 {[%emt 0:00:10]} 8. Qd2 {[%emt 0:00:06]} O-O {[%emt 0:00:05]} 9. O-O-O {[%emt 0:00:03]} Nc5 {[%emt 0:00:05]} 10. h4 {[%emt 0:00:23]} Re8 {[%emt 0:00:10]} 11. Bc4 {[%emt 0:00:15]} Be6 {[%emt 0:00:05]} (11... Bg4 $5) 12. Bxe6 {[%emt 0:00:10]} Nxe6 {[%emt 0:00:01]} 13. Be3 {[%emt 0:00:05]} c6 {[%emt 0:00:06]} 14. c4 {[%emt 0:00:25]} Bf8 {[%emt 0:00:29]} 15. h5 {[%emt 0:00:17]} a6 {[%emt 0:00:17]} 16. h6 {[%emt 0:00:07]} g6 {[%emt 0:00:01]} 17. Qc3 {[%emt 0:00:39]} Qe7 {[%emt 0:00:19]} 18. Rhe1 {[%emt 0:01:09]} f5 {[%emt 0:00:07]} 19. Kb1 {[%emt 0:00:18]} Qf7 {[%emt 0:00:15]} (19... f4 $2 20. Bxf4 Qc7 21. Bc1 $18) 20. Bc1 {[%emt 0:00:02]} f4 {[%emt 0:00:31]} 21. Rh1 {[%emt 0:00:13]} (21. b4 $16 Bxh6 22. Rxd6) 21... Be7 {[%emt 0:01:00]} (21... Nc5 $11 {should be considered.}) 22. Rhe1 {[%emt 0:00:11]} Bf8 $1 {[%emt 0:00:17]} 23. g4 {[%emt 0:02:08]} (23. b4 $14 Bxh6 24. Rxd6) 23... Bxh6 $11 {[%emt 0:01:05]} 24. Rxd6 {[%emt 0:00:02]} Bg7 {[%emt 0:00:24]} 25. Qa5 {[%emt 0:00:12]} Nf8 {[%emt 0:00:28]} 26. b3 {[%emt 0:00:29]} Rxe1 {[%emt 0:00:09]} 27. Qxe1 {[%emt 0:00:02]} Re8 {[%emt 0:00:00]} 28. Qd2 {[%emt 0:00:02]} Qe7 {[%emt 0:00:43]} 29. Bb2 {[%emt 0:00:53]} Qe2 {[%emt 0:00:00]} 30. Qxf4 {[%emt 0:00:06]} Qf1+ {[%emt 0:01:23]} (30... Qxf2 $2 31. Bxg7 Kxg7 32. Rf6 $18) 31. Qc1 {[%emt 0:00:03]} Qxf2 {[%emt 0:00:05]} 32. Bxg7 {[%emt 0:00:02]} Kxg7 {[%emt 0:00:03]} (32... Qxf3 {simplifies} 33. Bf6 Re6 34. Rxe6 Nxe6 35. g5 h6) 33. Qf4 {[%emt 0:00:11]} Re6 {[%emt 0:00:32]} (33... Kg8 $11 34. Rd3 Re1+ 35. Kb2 Re2) 34. Rd8 $16 {[%emt 0:00:28]} Qc5 {[%emt 0:00:47]} 35. Rb8 {[%emt 0:00:24]} Qe7 {[%emt 0:00:12] [#]} 36. g5 $1 {[%emt 0:00:07]} c5 {[%emt 0:00:19]} 37. a4 {[%emt 0:00:15]} a5 {[%emt 0:00:03]} 38. Qd2 {[%emt 0:00:16]} (38. Rc8 $16 {and Rc7 should not be overlooked} Kg8 39. Ne5 Rxe5 40. Rxf8+ Qxf8 41. Qxe5) 38... b6 $14 {[%emt 0:00:04]} 39. Qc3+ {[%emt 0:00:09]} (39. Kb2 {seems wilder.} Qc7 40. Rd8 Re7 41. Qc3+) 39... Kg8 {[%emt 0:00:01]} 40. Qd2 {[%emt 0:00:24]} Qc7 {[%emt 0:00:04]} 41. Rd8 {[%emt 0:00:04]} Qf7 {[%emt 0:00:13]} 42. Qd5 {[%emt 0:00:03]} Kg7 {[%emt 0:00:13]} (42... Re3 $11 43. Nd2 Re2) 43. Rb8 {[%emt 0:00:10]} Nd7 $2 {[%emt 0:00:08][%mdl 8192] [#]} (43... Qf5 $16 44. Rb7+ Kh8) 44. Rb7 $1 $18 {[%emt 0:00:03]} Re7 {[%emt 0:00:01]} 45. Qd6 {[%emt 0:00:04]} Kf8 {[%emt 0:00:23]} 46. Rxd7 {[%emt 0:00:06]} 1-0

[Event "CCT Final-RR 2024"]
[Site "Oslo"]
[Date "2024.12.17"]
[Round "2"]
[White "Firouzja, Alireza"]
[Black "So, Wesley"]
[Result "0-1"]
[ECO "A13"]
[WhiteElo "2763"]
[BlackElo "2747"]
[Annotator "TA"]
[PlyCount "64"]
[EventDate "2024.12.11"]
[EventType "tourn"]
[EventCountry "NOR"]
[SourceTitle "playchess.com"]
[Source "ChessBase"]
[SourceQuality "1"]
[TimeControl "600+2"]

{[%evp 9,64,14,29,35,27,-5,42,27,26,16,44,54,76,64,93,48,35,38,54,50,71,22,20,21,31,14,18,7,30,12,24,0,18,-6,-1,-18,-8,-8,-8,-8,-8,-8,-13,-5,-18,-75,-75,-145,-143,-149,-135,-200,-199,-202,-207,-608,-585]} 1. Nf3 {[%emt 0:00:02]} d5 {[%emt 0:00:02]} 2. c4 {[%emt 0:00:01]} e6 {[%emt 0:00:08]} 3. g3 {[%emt 0:00:02]} Nf6 {[%emt 0:00:09]} 4. Bg2 {[%emt 0:00:01]} d4 {[%emt 0:00:04]} 5. O-O {[%emt 0:00:18]} Nc6 {[%emt 0:00:24]} 6. e3 {[%emt 0:00:08]} e5 {[%emt 0:01:23]} 7. d3 {[%emt 0:01:25]} Bg4 {[%emt 0:00:03]} (7... Bc5 $11 {is superior.}) 8. h3 {[%emt 0:00:39]} Bxf3 {[%emt 0:00:02]} 9. Bxf3 {[%emt 0:00:02]} dxe3 {[%emt 0:00:04]} 10. Bxe3 {[%emt 0:00:03]} Qd7 {[%emt 0:00:04]} 11. Nc3 {[%emt 0:00:34]} Be7 {[%emt 0:02:50]} 12. Qa4 {[%emt 0:01:02]} O-O {[%emt 0:00:14]} 13. Kg2 {[%emt 0:00:41]} Rfd8 {[%emt 0:00:29]} 14. Rad1 {[%emt 0:00:56]} Nd4 {[%emt 0:00:12]} 15. Qxd7 {[%emt 0:00:10]} (15. Bxb7 $16 {Black must now prevent Qxd7.} Rab8 16. Bxd4 (16. Qxa7 $2 c6 $19) 16... Qxd4 17. Qc6) 15... Rxd7 $11 {[%emt 0:00:10]} 16. Bxb7 {[%emt 0:01:06]} Rb8 {[%emt 0:00:01][%cal Ba8b8,Bb8b2,Bb2c2][%mdl 32]} 17. Be4 {[%emt 0:00:03]} ({Of course not} 17. Bxd4 exd4 18. Bc6 dxc3 19. Bxd7 Nxd7 20. bxc3 Nb6 $11) 17... Rxb2 {[%emt 0:00:09]} 18. Rb1 {[%emt 0:00:12]} Nxe4 {[%emt 0:00:20]} (18... Rc2 {is more complex.} 19. Nd5 Nxd5 20. Bxd5 Nf5) 19. dxe4 {[%emt 0:00:48]} Rc2 {[%emt 0:00:25]} 20. Nd5 {[%emt 0:00:16]} f6 {[%emt 0:00:26]} 21. Rb7 {[%emt 0:01:08]} Rxa2 {[%emt 0:00:22]} 22. Rfb1 {[%emt 0:00:02]} Ne6 {[%emt 0:00:26]} 23. Nxe7+ {[%emt 0:00:44]} Rxe7 {[%emt 0:00:00]} 24. Rxa7 {[%emt 0:00:05]} Rxa7 {[%emt 0:00:02]} 25. Bxa7 {[%emt 0:00:01][%mdl 4096] Endgame KRB-KRN} c5 {[%emt 0:00:13]} 26. Bb8 {[%emt 0:00:15]} Rd7 {[%emt 0:00:10]} 27. Rb6 {[%emt 0:00:00]} (27. h4 $11) 27... Ng5 $17 {[%emt 0:00:03]} 28. Rc6 {[%emt 0:00:10]} (28. f4 $142 exf4 (28... Nxe4 29. fxe5 Rd4 30. h4 $11) 29. Bxf4 Nxe4 30. h4) 28... Nxe4 {[%emt 0:00:05]} 29. Kf3 {[%emt 0:00:01]} Rd4 {[%emt 0:00:09]} 30. h4 {[%emt 0:00:03]} (30. Rc8+ $17 Kf7 31. Rc7+ Kg6 32. Rc6) 30... h5 $19 {[%emt 0:00:09]} 31. Ke3 {[%emt 0:00:02]} Rxc4 {[%emt 0:00:02]} 32. f3 $2 {[%emt 0:00:02]} (32. Bc7) 32... Nxg3 {[%emt 0:00:03]} 0-1